bitfinex-derivatives/quotes_SOLF0:USTF0_20250416
["timestamp","ask_amount","ask_price","bid_price","bid_amount"]
[1744845011355,7.5712,132.09,132.06,8.35184605]
[1744845013860,7.5712,132.09,132.06,15.92474605]
[1744845015460,7.5712,132.09,132.06,8.35184605]
[1744845016557,7.5712,132.09,132.06,15.92454605]
[1744845018061,545.56,132.13,132.08,8.35184605]
[1744845018062,573.24,132.13,132.08,8.35184605]
[1744845018365,573.24,132.13,132.09,8.4065089]
[1744845018565,7.5697,132.12,132.09,15.9773089]
[1744845018864,573.24,132.13,132.09,15.9773089]
[1744845018865,36.03184605,132.13,132.09,0.05466285]
[1744845019058,7.5695,132.12,132.09,0.05466285]
[1744845019265,7.5695,132.12,132.09,8.4065089]
[1744845019963,7.5687,132.14,132.1,8.35184605]
[1744845020567,7.5687,132.14,132.11,7.5699]
[1744845021166,7.5689,132.13,132.11,7.5699]
[1744845021362,36.01184605,132.16,132.11,15.97642335]
[1744845021763,7.5687,132.14,132.11,15.97642335]
[1744845022561,7.5689,132.13,132.11,15.97642335]
[1744845022767,8.35184605,132.14,132.11,0.0546773]
[1744845023069,7.5693,132.13,132.11,0.0546773]
[1744845023269,8.35184605,132.13,132.11,0.0546773]
[1744845023668,7.5694,132.12,132.11,0.0546773]
[1744845025873,7.5692,132.13,132.11,0.0546773]
[1744845027974,7.5683,132.14,132.11,15.97612335]
[1744845028977,7.5689,132.13,132.11,15.97612335]
[1744845029271,7.5689,132.13,132.11,8.40652335]
[1744845029977,7.5685,132.14,132.11,15.97652335]
[1744845033879,7.568,132.15,132.11,8.40652335]
[1744845034076,36.01184605,132.17,132.12,8.35184605]
[1744845034474,36.01184605,132.17,132.12,15.92074605]
[1744845034774,7.5678,132.15,132.12,15.92074605]
[1744845036273,7.5678,132.15,132.12,7.5689]
[1744845036478,7.5684,132.14,132.12,7.5689]
[1744845036679,7.5684,132.14,132.12,7.61774584]
[1744845037079,7.568,132.15,132.12,7.61774584]
[1744845037480,7.568,132.15,132.12,15.96959189]
[1744845039281,7.568,132.15,132.13,7.5688]
[1744845039580,7.568,132.15,132.12,8.40069189]
[1744845039779,7.568,132.15,132.12,15.96989189]
[1744845040381,7.568,132.15,132.13,8.35184605]
[1744845040878,7.5674,132.16,132.14,8.35184605]
[1744845041084,7.5674,132.16,132.14,8.40825297]
[1744845042277,7.5674,132.16,132.14,15.97645297]
[1744845042981,7.5657,132.19,132.16,7.5669]
[1744845043278,36.01184605,132.21,132.16,8.35184605]
[1744845043485,8.35184605,132.19,132.17,0.05817235]
[1744845043782,7.5664,132.18,132.17,0.05817235]
[1744845044785,7.5656,132.19,132.17,0.05817235]
[1744845044982,36.01184605,132.21,132.17,0.05817235]
[1744845045181,8.35184605,132.22,132.17,8.4100184]
[1744845045382,8.35184605,132.22,132.17,15.9761184]
[1744845046186,7.5649,132.2,132.17,15.9761184]
[1744845047485,7.5649,132.2,132.17,7.62427235]
[1744845047686,7.5649,132.2,132.19,8.35184605]
[1744845047886,7.5646,132.21,132.19,8.35184605]
[1744845048087,7.5646,132.21,132.19,8.4084607]
[1744845049284,36.01184605,132.24,132.19,0.05661465]
[1744845049285,7.5649,132.2,132.19,0.05661465]
[1744845052492,15.91674605,132.2,132.19,0.05661465]
[1744845052683,8.35184605,132.2,132.12,553.27184605]
[1744845052888,8.35184605,132.16,132.12,544.92]
[1744845053090,8.35184605,132.16,132.11,35.99184605]
[1744845053288,8.35184605,132.15,132.11,35.99184605]
[1744845053588,7.5683,132.14,132.11,43.56154605]
[1744845053783,0.05119072,132.14,132.12,0.05025701]
[1744845055588,7.61949072,132.14,132.12,0.05025701]
[1744845055992,7.61949072,132.14,132.12,7.61965701]
[1744845055993,0.05119072,132.14,132.12,7.61965701]
[1744845056194,0.05119072,132.14,132.12,0.05025701]
[1744845056386,0.05119072,132.14,132.12,8.40210306]
[1744845056588,0.05119072,132.14,132.12,15.97120306]
[1744845057789,0.05119072,132.14,132.13,15.92074605]
[1744845058796,27.64,132.18,132.13,8.35184605]
[1744845058989,27.64,132.18,132.15,8.35184605]
[1744845059294,7.5657,132.19,132.15,8.35184605]
[1744845059495,8.35184605,132.2,132.16,8.35184605]
[1744845059894,8.35184605,132.2,132.17,0.05649831]
[1744845060091,27.64,132.21,132.17,8.40834436]
[1744845060297,544.84,132.23,132.19,8.35184605]
[1744845060492,35.99184605,132.24,132.2,0.05066844]
[1744845060693,7.5643,132.21,132.2,0.05066844]
[1744845062998,7.5639,132.22,132.2,0.05066844]
[1744845065100,7.5643,132.21,132.2,0.05066844]
[1744845067997,7.564,132.22,132.2,0.05066844]
[1744845068899,7.5643,132.21,132.2,0.05066844]
[1744845081422,7.5639,132.22,132.2,0.05066844]
[1744845091233,7.5643,132.21,132.2,0.05066844]
[1744845093136,8.35184605,132.26,132.2,8.40251449]
[1744845093335,35.97184605,132.27,132.23,8.35184605]
[1744845093633,7.5617,132.26,132.24,8.40723925]
[1744845093830,5.9366,132.34,132.25,8.35184605]
[1744845094032,7.5591,132.31,132.28,8.3997595]
[1744845094734,8.35184605,132.33,132.28,8.3997595]
[1744845094735,7.5592,132.3,132.28,8.3997595]
[1744845097234,7.5587,132.31,132.28,8.3997595]
[1744845097429,8.35184605,132.33,132.28,8.3997595]
[1744845097636,27.62,132.34,132.3,8.35184605]
[1744845097837,7.558,132.33,132.31,0.04867097]
[1744845098736,7.558,132.32,132.31,0.04867097]
[1744845099438,27.62,132.34,132.31,0.04867097]
[1744845099439,7.5577,132.33,132.31,0.04867097]
[1744845099929,27.62,132.34,132.31,0.04867097]
[1744845100134,7.558,132.32,132.31,0.04867097]
[1744845104435,15.90984605,132.32,132.31,0.04867097]
[1744845104637,7.5601,132.29,132.27,35.97184605]
[1744845105338,7.5601,132.29,132.27,27.62]
[1744845105639,0.05186965,132.29,132.27,27.67765759]
[1744845106039,7.61216965,132.29,132.27,27.67765759]
[1744845107439,7.61216965,132.29,132.27,0.05765759]
[1744845110742,7.5603,132.28,132.27,0.05765759]
[1744845110942,0.05186965,132.29,132.27,0.05765759]
[1744845111439,7.61186965,132.29,132.27,0.05765759]
[1744845115350,0.05186965,132.29,132.27,8.40950364]
[1744845115647,0.05186965,132.29,132.27,36.00950364]
[1744845116147,0.05186965,132.29,132.27,43.57010364]
[1744845118652,7.61166965,132.29,132.27,36.00950364]
[1744845120150,0.05186965,132.29,132.27,43.57030364]
[1744845120451,8.35184605,132.28,132.27,0.05765759]
[1744845120651,15.91214605,132.28,132.27,0.05765759]
[1744845120861,43.51184605,132.28,132.16,365.0]
[1744845121156,8.35184605,132.22,132.17,27.6]
[1744845121360,7.5649,132.2,132.17,35.1661]
[1744845121553,8.35184605,132.2,132.17,27.6]
[1744845122056,7.5659,132.19,132.17,27.65729704]
[1744845125959,15.96908995,132.2,132.17,35.22369704]
[1744845126160,7.6172439,132.2,132.17,35.22369704]
[1744845127363,0.0521439,132.2,132.17,35.22369704]
[1744845127554,0.0521439,132.2,132.17,36.00914309]
[1744845128163,0.0521439,132.2,132.17,27.65729704]
[1744845128756,0.0521439,132.2,132.18,7.5656]
[1744845133066,0.0521439,132.2,132.17,35.22359704]
[1744845133362,8.40398995,132.2,132.17,27.65729704]
[1744845133762,15.96918995,132.2,132.17,27.65729704]
[1744845134559,7.5655,132.19,132.17,27.65729704]
[1744845135065,15.91734605,132.19,132.17,27.65729704]
[1744845135257,7.566,132.18,132.17,0.05729704]
[1744845135566,15.91784605,132.18,132.17,0.05729704]
[1744845136264,8.35184605,132.18,132.17,0.05729704]
[1744845137465,15.91784605,132.18,132.17,0.05729704]
[1744845137865,7.566,132.18,132.17,0.05729704]
[1744845138963,15.91784605,132.18,132.17,0.05729704]
[1744845139166,7.568,132.15,132.12,7.569]
[1744845139370,15.91984605,132.15,132.12,7.569]
[1744845140066,7.5683,132.14,132.12,7.569]
[1744845140266,7.5683,132.14,132.12,7.62012726]
[1744845144172,7.5683,132.14,132.12,0.05112726]
[1744845144769,8.35184605,132.14,132.12,0.05112726]
[1744845144968,8.35184605,132.14,132.12,7.62042726]
[1744845145470,8.35184605,132.14,132.12,0.05112726]
[1744845145669,8.35184605,132.13,132.12,0.05112726]
[1744845145971,15.92074605,132.13,132.12,0.05112726]
[1744845146477,27.67252698,132.15,132.12,0.05112726]
[1744845146675,8.35184605,132.14,132.12,0.05112726]
[1744845146876,27.67252698,132.15,132.12,0.05112726]
[1744845146877,8.35184605,132.13,132.12,0.05112726]
[1744845147077,15.92074605,132.13,132.12,0.05112726]
[1744845148275,15.92074605,132.13,132.06,42.06784605]
[1744845148276,7.5708,132.1,132.06,42.06784605]
[1744845148474,15.92264605,132.1,132.06,42.06784605]
[1744845148678,27.62,132.15,132.06,42.06784605]
[1744845148876,8.35184605,132.13,132.08,8.35184605]
[1744845149074,8.35184605,132.14,132.09,8.35184605]
[1744845149278,0.05389539,132.13,132.11,7.5696]
[1744845149576,0.05389539,132.13,132.1,0.05507791]
[1744845149880,7.62289539,132.13,132.1,7.62537791]
[1744845150078,0.05389539,132.13,132.1,7.62537791]
[1744845150377,0.05389539,132.13,132.1,0.05507791]
[1744845151682,8.35184605,132.12,132.1,0.05507791]
[1744845152178,15.92154605,132.12,132.1,0.05507791]
[1744845152474,8.35184605,132.11,132.1,0.05507791]
[1744845152681,8.35184605,132.11,132.06,27.62]
[1744845152880,8.35184605,132.08,132.06,27.62]
[1744845153182,8.35184605,132.07,132.03,27.62]
[1744845153480,15.92444605,132.07,132.04,7.5738]
[1744845153779,0.04915932,132.07,132.04,8.40445321]
[1744845153979,0.04915932,132.07,132.04,0.05260716]
[1744845154182,0.04915932,132.07,132.05,7.5733]
[1744845154684,7.62145932,132.07,132.04,7.62630716]
[1744845154975,0.04915932,132.07,132.04,0.05260716]
[1744845155281,7.62175932,132.07,132.04,7.62640716]
[1744845155682,0.04915932,132.07,132.04,0.05260716]
[1744845156182,0.04915932,132.07,132.05,7.5734]
[1744845156575,0.04915932,132.07,132.05,8.35184605]
[1744845156781,0.04915932,132.07,132.06,8.35184605]
[1744845156981,0.04915932,132.07,132.04,8.40445321]
[1744845157184,0.04915932,132.07,132.04,0.05260716]
[1744845157481,7.62195932,132.07,132.04,7.62650716]
[1744845157782,0.04915932,132.07,132.04,0.05260716]
[1744845157987,8.40100537,132.07,132.04,0.05260716]
[1744845158584,7.5729,132.06,132.04,0.05260716]
[1744845158783,8.40100537,132.07,132.04,0.05260716]
[1744845159682,15.97360537,132.07,132.04,7.62660716]
[1744845160684,7.5729,132.06,132.04,7.62660716]
[1744845161080,8.40100537,132.07,132.04,7.62660716]
[1744845161280,15.97360537,132.07,132.04,7.62660716]
[1744845161685,15.97360537,132.07,132.04,0.05260716]
[1744845161686,8.35184605,132.06,132.04,0.05260716]
[1744845161979,15.92524605,132.05,132.04,0.05260716]
[1744845162383,7.5757,132.01,132.0,27.64]
[1744845162584,8.35184605,132.01,131.98,2.0154]
[1744845162884,8.35184605,132.0,131.98,2.0154]
[1744845163188,13.06207287,132.02,131.98,2.0154]
[1744845163383,27.64,132.03,131.98,2.0154]
[1744845163583,0.0532652,132.01,131.99,0.0539426]
[1744845163781,7.6290652,132.01,131.99,0.0539426]
[1744845165688,7.5763,132.0,131.99,0.0539426]
[1744845166281,7.6292652,132.01,131.99,0.0539426]
[1744845166586,0.0532652,132.01,131.99,0.0539426]
[1744845166882,0.0532652,132.01,132.0,7.5763]
[1744845167080,0.0532652,132.01,131.99,0.0539426]
[1744845167586,0.0532652,132.01,131.99,7.6305426]
[1744845168087,7.6289652,132.01,131.99,0.0539426]
[1744845168289,0.0532652,132.01,131.99,0.0539426]
[1744845168689,7.5763,132.0,131.99,0.0539426]
[1744845169083,0.0532652,132.01,131.99,0.0539426]
[1744845170890,0.0532652,132.01,132.0,7.5763]
[1744845171284,27.64,132.04,132.02,7.5749]
[1744845171489,7.5737,132.05,132.02,7.5749]
[1744845171686,13.06207287,132.06,132.0,27.64]
[1744845171889,7.574,132.04,132.0,27.64]
[1744845172392,0.05555377,132.03,132.01,7.62958216]
[1744845173688,0.05555377,132.03,132.02,7.5752]
[1744845174491,40.70207287,132.1,132.01,13.11625503]
[1744845174694,27.64,132.1,132.03,13.06207287]
[1744845174895,46.64267287,132.14,132.05,13.06207287]
[1744845175090,42.66007287,132.14,132.08,7.5714]
[1744845175496,7.5698,132.12,132.08,7.5714]
[1744845175797,7.62757285,132.12,132.1,0.04901711]
[1744845180597,7.57,132.11,132.1,0.04901711]
[1744845185403,7.62747285,132.12,132.1,0.04901711]
[1744845185806,0.05777285,132.12,132.1,0.04901711]
[1744845187009,7.57,132.11,132.1,0.04901711]
[1744845187202,15.915467,132.11,132.1,0.04901711]
[1744845189911,7.57,132.11,132.1,0.04901711]
[1744845191209,7.5721,132.08,132.06,2.1018]
[1744845192213,7.61996994,132.08,132.06,2.1518521]
[1744845193407,0.04786994,132.08,132.07,8.345467]
[1744845193607,8.345467,132.12,132.07,36.025467]
[1744845193802,8.345467,132.12,132.08,8.345467]
[1744845194008,7.5697,132.12,132.09,15.916267]
[1744845194511,7.62422526,132.12,132.09,15.96569128]
[1744845196009,7.57,132.11,132.09,8.39489128]
[1744845196212,7.57,132.11,132.09,0.04942428]
[1744845196410,0.05452526,132.12,132.09,0.04942428]
[1744845196914,7.62432526,132.12,132.09,7.62052428]
[1744845202721,7.5701,132.11,132.09,0.04942428]
[1744845204020,15.915567,132.11,132.09,0.04942428]
[1744845204321,7.5706,132.1,132.09,0.04942428]
[1744845204522,15.916067,132.1,132.09,0.04942428]
[1744845205522,7.5725,132.07,132.04,43.599067]
[1744845206523,7.62244621,132.07,132.04,43.65532271]
[1744845206722,0.04994621,132.07,132.04,0.05625571]
[1744845207019,8.345467,132.05,132.04,0.05625571]
[1744845207223,15.918867,132.05,132.04,0.05625571]
[1744845207526,8.345467,132.0,131.99,27.68]
[1744845207715,8.345467,132.0,131.97,6.0323]
[1744845207920,15.922367,131.99,131.96,35.2583]
[1744845208222,8.345467,132.0,131.96,27.68]
[1744845208422,15.97909461,131.99,131.96,27.7352825]
[1744845208627,15.97741715,131.99,131.96,27.73413529]
[1744845209224,0.05475015,131.99,131.96,27.73413529]
[1744845210526,0.05475015,131.99,131.97,7.5777]
[1744845211030,0.05475015,131.99,131.96,27.73413529]
[1744845211223,0.05475015,131.99,131.96,0.05413529]
[1744845212326,7.5778,131.98,131.96,0.05413529]
[1744845213831,7.578,131.97,131.96,0.05413529]
[1744845214727,7.5777,131.98,131.96,0.05413529]
[1744845215228,7.578,131.97,131.96,0.05413529]
[1744845216730,7.5777,131.98,131.96,0.05413529]
[1744845218829,27.69475015,131.99,131.96,0.05413529]
[1744845218830,0.05475015,131.99,131.96,0.05413529]
[1744845219027,0.05475015,131.99,131.96,27.69413529]
[1744845221631,0.05475015,131.99,131.97,13.06342943]
[1744845221837,27.64,132.05,131.97,13.06342943]
[1744845222130,27.64,132.05,131.99,13.06342943]
[1744845222330,7.5743,132.04,132.01,7.5755]
[1744845222534,27.64,132.05,132.01,7.5755]
[1744845222832,0.05183287,132.04,132.02,0.05776113]
[1744845223034,7.62613287,132.04,132.02,0.05776113]
[1744845223233,0.05183287,132.04,132.02,0.05776113]
[1744845223429,13.1152623,132.04,132.02,0.05776113]
[1744845224734,7.5746,132.03,132.02,0.05776113]
[1744845231151,15.93185581,132.03,132.02,0.05776113]
[1744845233344,7.5746,132.03,132.02,0.05776113]
[1744845235843,15.93185581,132.03,132.02,0.05776113]
[1744845237246,8.35725581,132.02,131.98,4.0399]
[1744845237447,8.35725581,132.03,131.99,7.5766]
[1744845237948,7.5755,132.02,131.99,7.5766]
[1744845238250,7.62349884,132.02,131.99,7.6295694]
[1744845239345,7.5757,132.01,131.99,0.0529694]
[1744845239540,8.40525465,132.02,131.99,0.0529694]
[1744845239948,7.5757,132.01,131.99,0.0529694]
[1744845240151,8.40525465,132.02,131.99,0.0529694]
[1744845240748,7.62339884,132.02,131.99,7.6293694]
[1744845240943,7.62339884,132.02,131.99,0.0529694]
[1744845241450,0.04799884,132.02,131.99,8.41022521]
[1744845242048,0.04799884,132.02,132.0,7.5759]
[1744845243251,7.62319884,132.02,132.0,7.5759]
[1744845243547,0.04799884,132.02,131.99,7.6296694]
[1744845243752,8.35725581,132.01,131.99,0.0529694]
[1744845244053,15.93355581,132.0,131.99,0.0529694]
[1744845244355,8.35725581,132.0,131.92,29.669]
[1744845244553,8.35725581,131.95,131.92,29.669]
[1744845244855,8.35725581,131.97,131.92,38.02625581]
[1744845245050,8.35725581,131.96,131.92,38.02625581]
[1744845245351,0.05644655,131.95,131.93,0.05560723]
[1744845245851,8.41370236,131.95,131.93,0.05560723]
[1744845246155,0.05644655,131.95,131.93,0.05560723]
[1744845246753,0.05644655,131.95,131.93,7.63570723]
[1744845248251,0.05644655,131.95,131.94,7.5798]
[1744845248849,0.05644655,131.95,131.93,7.63560723]
[1744845249049,0.05644655,131.95,131.93,0.05560723]
[1744845249349,8.41370236,131.95,131.93,0.05560723]
[1744845249746,8.35725581,131.94,131.93,0.05560723]
[1744845249947,15.93705581,131.94,131.93,0.05560723]
[1744845252246,15.93725581,131.94,131.85,26.62685559]
[1744845252451,8.35725581,131.87,131.85,26.62685559]
[1744845253151,15.94105581,131.87,131.85,26.62685559]
[1744845253355,15.94105581,131.87,131.85,26.68119962]
[1744845254455,8.35725581,131.87,131.85,26.68119962]
[1744845255157,7.64127081,131.88,131.85,26.68119962]
[1744845256255,0.05777081,131.88,131.85,34.26579962]
[1744845256754,0.05777081,131.88,131.86,16.45991853]
[1744845257255,7.64107081,131.88,131.86,8.87561853]
[1744845257454,0.05777081,131.88,131.86,8.87561853]
[1744845257756,7.64097081,131.88,131.86,8.87561853]
[1744845258056,0.05777081,131.88,131.86,8.87561853]
[1744845258556,0.05777081,131.88,131.86,16.45981853]
[1744845259463,0.05777081,131.88,131.87,7.5838]
[1744845260361,40.74821073,131.95,131.87,2.1004]
[1744845260760,40.74821073,131.95,131.88,27.66]
[1744845260959,7.5806,131.93,131.9,7.5817]
[1744845261356,7.63246044,131.93,131.9,7.63447029]
[1744845261561,0.05186044,131.93,131.9,7.63447029]
[1744845262558,0.05186044,131.93,131.9,0.05277029]
[1744845263862,0.05186044,131.93,131.9,7.63467029]
[1744845266358,0.05186044,131.93,131.9,0.05277029]
[1744845266963,0.05186044,131.93,131.91,7.5812]
[1744845267263,0.05186044,131.93,131.9,0.05277029]
[1744845267560,0.05186044,131.93,131.91,7.5811]
[1744845269264,0.05186044,131.93,131.92,7.5809]
[1744845270370,0.05186044,131.93,131.92,9.7059]
[1744845270570,27.94,131.98,131.95,7.5791]
[1744845270766,41.02821073,132.01,131.93,2.106]
[1744845271168,41.02821073,132.01,131.95,7.5789]
[1744845271470,7.5779,131.98,131.97,0.05610105]
[1744845273074,27.94,131.98,131.92,2.125]
[1744845273262,13.08821073,131.96,131.91,29.8803]
[1744845273674,7.58,131.94,131.91,29.8803]
[1744845273869,7.58,131.94,131.91,37.4617]
[1744845274068,0.05042227,131.94,131.91,37.51745633]
[1744845274971,7.63062227,131.94,131.91,27.99575633]
[1744845275164,0.05042227,131.94,131.91,0.05575633]
[1744845276174,7.63042227,131.94,131.91,7.63715633]
[1744845278774,0.05042227,131.94,131.91,0.05575633]
[1744845279273,0.05042227,131.94,131.91,27.99575633]
[1744845279472,0.05042227,131.94,131.92,7.5806]
[1744845279671,0.05042227,131.94,131.91,27.99575633]
[1744845279974,0.05042227,131.94,131.92,7.5809]
[1744845280272,0.05042227,131.94,131.91,27.99575633]
[1744845281173,0.05042227,131.94,131.93,7.5803]
[1744845281870,41.02821073,131.98,131.96,7.5784]
[1744845281871,27.94,131.98,131.96,7.5784]
[1744845282073,27.94,132.01,131.96,7.5784]
[1744845282271,27.94,132.01,131.92,13.08821073]
[1744845283076,0.04790708,131.98,131.95,0.05681951]
[1744845283277,7.62550708,131.98,131.95,7.63601951]
[1744845283478,7.62550708,131.98,131.95,0.05681951]
[1744845284277,7.578,131.97,131.95,0.05681951]
[1744845285479,7.5786,131.96,131.95,0.05681951]
[1744845289181,15.94317673,131.96,131.95,0.05681951]
[1744845290378,15.94287673,131.97,131.95,0.05681951]
[1744845290582,36.35248381,131.98,131.95,0.05681951]
[1744845290779,8.36457673,131.97,131.95,0.05681951]
[1744845291279,15.94317673,131.96,131.95,0.05681951]
[1744845291481,7.5786,131.96,131.95,0.05681951]
[1744845297288,15.94317673,131.96,131.95,0.05681951]
[1744845301497,7.5799,131.94,131.91,27.94]
[1744845302700,7.63689306,131.94,131.91,27.98835197]
[1744845303401,7.63689306,131.94,131.91,35.56955197]
[1744845303696,7.5803,131.93,131.91,27.98835197]
[1744845303901,7.5803,131.93,131.91,36.3529287]
[1744845304202,8.36457673,131.92,131.91,0.04835197]
[1744845304502,15.94547673,131.92,131.91,0.04835197]
[1744845304796,8.36457673,131.92,131.83,6.0955]
[1744845304999,8.36457673,131.88,131.83,33.8955]
[1744845305200,8.36457673,131.88,131.83,42.26007673]
[1744845305400,15.94827673,131.88,131.84,7.5852]
[1744845305903,0.0543924,131.87,131.85,7.64104917]
[1744845307096,7.6382924,131.87,131.85,0.05614917]
[1744845308106,0.0543924,131.87,131.85,0.05614917]
[1744845309207,0.0543924,131.87,131.85,7.64104917]
[1744845309701,7.6381924,131.87,131.85,0.05614917]
[1744845311008,0.0543924,131.87,131.85,0.05614917]
[1744845311200,0.0543924,131.87,131.85,7.64104917]
[1744845312411,7.6381924,131.87,131.85,0.05614917]
[1744845314112,0.0543924,131.87,131.85,7.64094917]
[1744845315515,8.41896913,131.87,131.85,0.05614917]
[1744845315706,36.16457673,131.86,131.77,27.8]
[1744845315911,7.587,131.82,131.79,7.588]
[1744845316111,15.95157673,131.82,131.79,7.588]
[1744845316815,16.00333718,131.82,131.79,7.64381342]
[1744845317911,8.41633718,131.82,131.8,7.5878]
[1744845318113,0.05176045,131.82,131.8,7.5878]
[1744845321414,0.05176045,131.82,131.81,7.5872]
[1744845322115,0.05176045,131.82,131.81,15.95177673]
[1744845322313,545.94,131.95,131.81,15.95177673]
[1744845322314,36.18457673,131.89,131.81,8.36457673]
[1744845322519,36.18457673,131.89,131.85,8.36457673]
[1744845323019,7.5836,131.88,131.85,15.94917673]
[1744845323222,7.63856378,131.88,131.85,15.99733518]
[1744845323917,0.05496378,131.88,131.85,0.04815845]
[1744845325219,7.5841,131.87,131.85,7.63305845]
[1744845325418,0.05496378,131.88,131.85,7.63305845]
[1744845325627,0.05496378,131.88,131.85,15.99763518]
[1744845325822,7.63846378,131.88,131.85,15.99763518]
[1744845326224,7.5838,131.87,131.85,0.04815845]
[1744845326423,8.36457673,131.87,131.85,0.04815845]
[1744845326722,8.36457673,131.86,131.85,0.04815845]
[1744845326923,15.94897673,131.86,131.85,0.04815845]
[1744845327925,7.5865,131.83,131.8,27.82]
[1744845328127,8.36457673,131.83,131.78,12.26087673]
[1744845328327,8.36457673,131.83,131.79,7.5881]
[1744845328927,7.63634116,131.82,131.8,0.05702162]
[1744845331329,7.5872,131.81,131.8,0.05702162]
[1744845331828,7.63614116,131.82,131.8,0.05702162]
[1744845333926,0.04924116,131.82,131.8,0.05702162]
[1744845334123,0.04924116,131.82,131.8,27.83702162]
[1744845334428,0.04924116,131.82,131.81,7.5872]
[1744845336127,0.04924116,131.82,131.8,35.42452162]
[1744845339533,0.04924116,131.82,131.81,7.5872]
[1744845339732,7.63614116,131.82,131.8,27.83702162]
[1744845340331,0.04924116,131.82,131.8,27.83702162]
[1744845340831,0.04924116,131.82,131.8,35.42452162]
[1744845341540,7.63604116,131.82,131.8,27.83702162]
[1744845341735,0.04924116,131.82,131.8,0.05702162]
[1744845342337,7.63614116,131.82,131.8,0.05702162]
[1744845344538,7.5872,131.81,131.8,0.05702162]
[1744845345233,7.63614116,131.82,131.8,0.05702162]
[1744845345440,7.63614116,131.82,131.8,7.64482162]
[1744845346836,0.04924116,131.82,131.81,7.5872]
[1744845347040,27.82,131.86,131.81,7.5872]
[1744845347438,7.5865,131.83,131.8,35.42452162]
[1744845348041,7.634595,131.83,131.8,35.42452162]
[1744845349639,7.5868,131.82,131.8,35.42452162]
[1744845350144,7.634695,131.83,131.8,35.42452162]
[1744845351247,16.01632972,131.83,131.8,35.42452162]
[1744845351647,7.5869,131.82,131.8,35.42452162]
[1744845353249,7.5869,131.82,131.8,27.83702162]
[1744845354148,7.5869,131.82,131.8,35.42472162]
[1744845354549,8.42972972,131.83,131.8,0.05702162]
[1744845354550,15.96883472,131.81,131.8,0.05702162]
[1744845355256,7.5894,131.78,131.76,27.78]
[1744845355454,8.38163472,131.81,131.77,7.5892]
[1744845355653,8.38163472,131.81,131.76,36.16163472]
[1744845355863,15.96923472,131.81,131.76,36.16163472]
[1744845356055,7.5876,131.81,131.78,7.5887]
[1744845356255,7.64083616,131.81,131.78,7.64248594]
[1744845356958,7.5879,131.8,131.78,0.05378594]
[1744845358161,7.5879,131.8,131.78,7.64278594]
[1744845360363,0.05323616,131.81,131.79,7.5884]
[1744845360563,0.05323616,131.81,131.78,0.05378594]
[1744845360761,0.05323616,131.81,131.8,7.5878]
[1744845361159,0.05323616,131.81,131.8,15.96943472]
[1744845361360,8.38163472,131.87,131.8,8.38163472]
[1744845361559,8.38163472,131.87,131.81,8.38163472]
[1744845361758,8.38163472,131.85,131.8,12.42493472]
[1744845361961,7.5858,131.84,131.81,7.5869]
[1744845362462,7.64398131,131.84,131.81,7.6429866]
[1744845363463,7.64398131,131.84,131.82,7.5866]
[1744845364162,0.05818131,131.84,131.83,7.5861]
[1744845366863,0.05818131,131.84,131.83,15.96773472]
[1744845367970,16.02531603,131.84,131.82,27.7]
[1744845368269,0.05818131,131.84,131.82,27.7]
[1744845368567,0.05818131,131.84,131.82,35.2864]
[1744845369871,7.64368131,131.84,131.82,35.2864]
[1744845370669,0.05818131,131.84,131.83,7.5861]
[1744845370870,0.05818131,131.84,131.82,36.08163472]
[1744845371067,0.05818131,131.84,131.82,27.7]
[1744845371271,7.5861,131.83,131.82,27.7]
[1744845372575,7.64388131,131.84,131.82,27.7]
[1744845373374,0.05818131,131.84,131.82,27.7]
[1744845373775,0.05818131,131.84,131.82,35.2865]
[1744845374576,3.9669,131.92,131.83,8.38163472]
[1744845374775,8.38163472,131.88,131.82,36.08163472]
[1744845374974,8.38163472,131.87,131.82,36.08163472]
[1744845375570,0.05263886,131.86,131.83,0.05698008]
[1744845376476,0.05263886,131.86,131.84,7.5852]
[1744845378474,7.63703886,131.86,131.84,7.5852]
[1744845379278,7.63703886,131.86,131.83,7.64278008]
[1744845379777,7.63703886,131.86,131.83,0.05698008]
[1744845379973,0.05263886,131.86,131.84,7.5855]
[1744845380172,0.05263886,131.86,131.84,8.38163472]
[1744845380374,0.05263886,131.86,131.85,7.5849]
[1744845381873,27.7,131.92,131.85,36.08163472]
[1744845382076,36.08163472,131.92,131.88,8.38163472]
[1744845382379,15.96353472,131.91,131.87,8.38163472]
[1744845382877,8.43582823,131.9,131.88,0.05530931]
[1744845383277,0.05419351,131.9,131.88,0.05530931]
[1744845383474,0.05419351,131.9,131.89,7.5826]